Cogmind - Beta 17.1 @@@ ROGUE MODE // 2026.09.10 @ 09:35:56 // Winter2019/RPGLIKE Player: FL-IST Result: Destroyed by as-99384 with Assembled Maul Performance ------------- Evolutions (0) 0 Regions Visited (2) 400 Robots Destroyed (50) 250 Value Destroyed (791) 791 Prototype IDs (0) 0 Alien Tech Used (0) 0 Bonus (28) 28 TOTAL SCORE: 1469 Bonus ------- Follower Combat Kills 28 Cogmind --------- Core Integrity 0/600 Matter 237/300 Energy 160/160 System Corruption 0% Temperature Warning (360) Movement Treading (160) Location -10/Mines Parts ------- > --- POWER (1) -------- Light Nuclear Core > --- PROPULSION (2) --- Light Treads Light Treads > --- UTILITY (2) ------ Improved Terrain Scanner Seismic Detector > --- WEAPON (3) ------- Medium Laser Beam Cannon Grenade Launcher > --- INVENTORY (2) ---- Protomatter-44 Assault Rifle Peak State ------------ > --- POWER ------------ Light Nuclear Core > --- PROPULSION ------- Light Treads Light Treads > --- UTILITY ---------- Improved Terrain Scanner Seismic Detector > --- WEAPON ----------- Medium Laser Beam Cannon Assault Rifle > --- INVENTORY -------- Protomatter Grenade Launcher [Rating: 12] Favorites ----------- Power Ion Engine Engine Ion Engine Power Core Light Nuclear Core Propulsion Light Treads Treads Light Treads Utility Seismic Detector Device Seismic Detector Weapon Medium Laser Energy Gun Medium Laser Energy Cannon Beam Cannon Ballistic Gun Assault Rifle Launcher Grenade Launcher Build | -11 -10 -10 ------- Run | Yrd Mat Min Slots Evolved 4 | 4 . . Power . | . . . Propulsion 1 | 1 . . Utility 1 | 1 . . Weapon 2 | 2 . . Parts Attached 11 | 8 1 2 Power 2 | 1 . 1 Engine 1 | 1 . . Core 1 | . . 1 Reactor . | . . . Propulsion 2 | 2 . . Treads 2 | 2 . . Leg . | . . . Wheel . | . . . Hover . | . . . Flight . | . . . Utility 2 | 2 . . Device 2 | 2 . . Storage . | . . . Processor . | . . . Hackware . | . . . Protection . | . . . Artifact . | . . . Weapon 5 | 3 1 1 Energy Gun 2 | 2 . . Energy Cannon 1 | . 1 . Ballistic Gun 1 | 1 . . Ballistic Cannon . | . . . Launcher 1 | . . 1 Special Weapon . | . . . Impact Weapon . | . . . Slashing Weapon . | . . . Piercing Weapon . | . . . Special Melee Weapon . | . . . Unidentified Prototypes . | . . . Parts Lost . | . . . Power . | . . . Propulsion . | . . . Utility . | . . . Weapon . | . . . Highest Loss Streak . | . . . To Critical Strikes . | . . . Average Backups . | . . 1 Power . | . . . Propulsion . | . . . Utility . | . . . Weapon . | . . 1 Tool/Special . | . . . Unused Backups . | . . . Power . | . . . Propulsion . | . . . Utility . | . . . Weapon . | . . . Tool/Special . | . . . Average Slot Usage (%) 99 | . 99 100 Engine 11 | . 12 10 Treads 24 | . 24 25 Device 25 | . 25 25 Energy Gun 19 | . 22 12 Energy Cannon 4 | . 2 12 Ballistic Gun 11 | . 11 11 Peak Build Rating 12 | 10 10 12 Average Rating 9 | 7 9 10 On Entrance 6 | . 10 10 Avg Prop Armor Cover (%) . | . . . Naked Turns . | . . . Heaviest Build 14 | 13 14 14 Greatest Support 40 | 40 40 40 Greatest Overweight (x) 1 | 1 . . Average Overweight (x) . | . . . Largest Inventory Capacity 2 | . 2 2 Average Capacity . | . . 2 Most Carried 2 | . 2 2 Average Carried . | . . 1 Final Capacity 2 | . 2 2 Final Carried 2 | . 2 2 Class Distribution -------------------- 100% | Gunner Dominant Class ---------------- Gunner | -10/Materials Gunner | -10/Mines Resources | -11 -10 -10 ----------- Run | Yrd Mat Min Matter Collected 624 | 310 254 60 Remotely . | . . . Salvage Created 1460 | 193 995 272 Parts 98 | 10 74 14 Haulers Intercepted 2 | . 2 . Recyclers Shooed 3 | 1 1 1 Parts Field Recycled . | . . . Retrieved Matter . | . . . Parts Self-Destructed . | . . . Prevented . | . . . Parts Restored . | . . . Kills | -11 -10 -10 ------- Run | Yrd Mat Min Combat Hostiles Destroyed 32 | . 21 11 Guns 25 | . 20 5 Cannons 4 | . 1 3 AOE 3 | . . 3 Classes Destroyed 10 | 3 6 1 Worker 6 | 1 5 . Builder 1 | . 1 . Tunneler 6 | 5 . 1 Hauler 2 | . 2 . Recycler 3 | 1 1 1 Operator 1 | . 1 . Watcher 3 | . 3 . Swarmer 14 | . 9 5 Grunt 14 | . 12 2 Assembled 4 | . . 4 Best Kill Streak 5 | 4 5 5 Combat Bots Only 4 | . 4 4 Max Kills in Single Turn 2 | 1 1 2 Gunslinging . | . . . Exploded 2 | . . 2 Melee . | . . . Uniques/NPCs Destroyed . | . . . Combat | -11 -10 -10 -------- Run | Yrd Mat Min Hostile Shots Fired 122 | . 67 55 Missed 31 | . 14 17 Hits 91 | . 53 38 Melee 8 | . . 8 Projectile 83 | . 53 30 AOE 9 | . . 9 Damage Taken 1416 | . 537 879 Core 1123 | . 425 698 Absorbed by Shields . | . . . Redirected to Core 983 | . 369 614 Core Remaining (%) 100 | 100 . . Volleys Fired 107 | 10 68 29 Largest 3 | 3 3 3 Hottest 130 | 110 130 130 Shots Fired 307 | 30 203 74 Gun 277 | 30 202 45 Cannon 26 | . 1 25 Launcher 4 | . . 4 Special . | . . . Kinetic 99 | 10 68 21 Thermal 127 | 10 68 49 Explosive 4 | . . 4 Electromagnetic 77 | 10 67 . Robot Hit Streak 13 | 4 13 6 Robot Miss Streak 6 | 2 5 6 Penetration Max . | . . . Secondary Targets 2 | . 2 . Max Gunslinging Chain 1 | . 1 . Shots Hit Robots 149 | 15 102 32 Core Hits 73 | 8 43 22 Critical Kills 1 | . . 1 Critical Parts Destroyed . | . . . Critical Strikes 9 | 1 5 3 Burn 7 | 1 4 2 Meltdown 1 | . . 1 Corrupt 1 | . 1 . Melee Attacks . | . . . Impact . | . . . Slashing . | . . . Piercing . | . . . Sneak Attacks . | . . . Combat Hostiles . | . . . Follow-up Attacks . | . . . Damage Inflicted 2239 | 193 1336 710 Guns 1755 | 193 1317 245 Cannons 198 | . 19 179 Explosions 286 | . . 286 Melee . | . . . Ramming . | . . . Kinetic 506 | 89 312 105 Thermal 809 | 51 439 319 Explosive 286 | . . 286 Electromagnetic 638 | 53 585 . Impact . | . . . Slashing . | . . . Piercing . | . . . Highest Corruption . | . . . Average Corruption . | . . . Corruption Purged . | . . . Corruption Blocked . | . . . Overload Shots . | . . . Overflow Damage 14 | . . 14 Projectiles . | . . . Explosions 14 | . . 14 Melee . | . . . Knockbacks . | . . . Impact . | . . . Kinetic . | . . . Secondary . | . . . Self-Inflicted Damage 93 | . . 93 Shots 3 | . . 3 Rammed . | . . . Targets Rammed . | . . . Kicked . | . . . Crushed . | . . . Highest Temperature 371 | 220 371 360 Average Temperature 105 | 87 103 116 Received Heat Transfer 180 | . 147 33 Effects 3 | . 1 2 Energy Bleed 3 | . 1 2 Siege Activations . | . . . Martial Activations . | . . . Shielding Activations . | . . . Robots Disrupted . | . . . Combat Hostiles . | . . . Robots Corrupted . | . . . Combat Hostiles . | . . . Parts Fried . | . . . Impact Corruptions . | . . . Robots Melted 1 | . . 1 Combat Hostiles . | . . . Parts Melted 4 | . 2 2 Heat Transferred 2701 | 222 1554 925 Parts Sabotaged . | . . . Parts Stolen . | . . . Parts Stripped . | . . . Power Chain Reactions . | . . . Alert | -11 -10 -10 ------- Run | Yrd Mat Min Maximum Alert Level 1 | . 1 1 Low Security (%) 77 | 100 66 99 Level 1 22 | . 33 . Level 2 . | . . . Level 3 . | . . . Level 4 . | . . . Level 5 . | . . . High Security . | . . . Max Security . | . . . Peak Influence 331 | 15 331 206 Initial 109 | . . 109 Average 129 | 2 139 135 Influence Increases 1104 | 35 740 329 Destroy 0b10 Robot/C 640 | . 420 220 Destroy 0b10 Robot/NC 110 | 35 65 10 Destroy Leader 140 | . 100 40 Allied During Kill 41 | . . 41 Successful Hack 12 | . 12 . Select Force Hacks 60 | . 60 . Disable Machine 15 | . 15 . Destroy Structure 11 | . 8 3 Lose Combat Pursuer 75 | . 60 15 Influence Decreases 1020 | 35 459 526 Entered New Map 172 | . . 172 Time Decay 788 | 35 459 294 Lost Ally 60 | . . 60 Squads Dispatched 5 | . 5 . Investigation 4 | . 4 . Extermination . | . . . Reinforcement 1 | . 1 . Assault . | . . . Garrison . | . . . Intercept . | . . . Searches Triggered . | . . . Construction Impeded . | . . . Haulers Reinforced . | . . . Active Scanning Responses . | . . . Cargo Convoy Interrupts . | . . . Stealth | -11 -10 -10 --------- Run | Yrd Mat Min Distress Signals 1 | . 1 . Communications Jammed . | . . . Distress Signals . | . . . Times Spotted 51 | . 32 19 Peak Tracking Total 7 | . 3 7 Tactical Retreats 5 | . 4 1 Traps | -11 -10 -10 ------- Run | Yrd Mat Min Traps Triggered 4 | . 4 . Indirectly . | . . . Trap Hack Attempts . | . . . Triggered . | . . . Disarmed . | . . . Reprogrammed . | . . . Reused . | . . . Traps Extracted . | . . . Installed . | . . . Triggered . | . . . Machines | -11 -10 -10 ---------- Run | Yrd Mat Min Machines Disabled 1 | . 1 . Max in Single Turn 1 | . 1 . Machines Repaired . | . . . Machines Dismantled . | . . . Machines Sabotaged . | . . . Overloaded Fab Kills . | . . . Hacking | -11 -10 -10 --------- Run | Yrd Mat Min Machines Accessed 9 | . 9 . Terminals 7 | . 7 . Fabricators . | . . . Repair Stations . | . . . Recycling Units 2 | . 2 . Scanalyzers . | . . . Garrison Access . | . . . Total Hacks 25 | . 25 . Successful 13 | . 13 . Failed 12 | . 12 . Catastrophic . | . . . Database Lockouts . | . . . Manual 20 | . 20 . Terminals 18 | . 18 . Fabricators . | . . . Repair Stations . | . . . Recycling Units 7 | . 7 . Scanalyzers . | . . . Garrison Access . | . . . Terminal Hacks 2 | . 2 . Robot Analysis 2 | . 2 . Fabricator Hacks . | . . . Repair Station Hacks . | . . . Recycling Unit Hacks 1 | . 1 . Retrieve Components 1 | . 1 . Scanalyzer . | . . . Garrison Access Hacks . | . . . Unauthorized Hacks 10 | . 10 . Terminals 8 | . 8 . Botnet 3 | . 3 . Skim 5 | . 5 . Fabricators . | . . . Repair Stations . | . . . Recycling Units 2 | . 2 . Tunnel 2 | . 2 . Scanalyzers . | . . . Garrison Access . | . . . Data Cores Recovered . | . . . Used . | . . . Hacking Detections 9 | . 9 . Full Trace Events 1 | . 1 . Feedback Events . | . . . Feedback Blocked . | . . . Robot Schematics Acquired . | . . . Robots Built . | . . . Authchips . | . . . Time . | . . . Total Robot Build Rating . | . . . Part Schematics Acquired . | . . . Parts Built . | . . . Authchips . | . . . Time . | . . . Total Part Build Rating . | . . . Part Studies Acquired . | . . . Parts Repaired . | . . . Time . | . . . Parts Recycled . | . . . Recycled Matter . | . . . Retrieved Matter . | . . . Retrieved Components 10 | . 10 . Parts Scanalyzed . | . . . Part Schematics Acquired . | . . . Parts Damaged . | . . . Bothacking | -11 -10 -10 ------------ Run | Yrd Mat Min Used RIF Installer . | . . . Robots Hacked . | . . . Non-combat . | . . . Combat . | . . . Robot Hacks Applied . | . . . Relay Couplers Released . | . . . Fabnet Peak Effective % . | . . . Robots Rewired . | . . . Allies Hacked . | . . . Hacks Repelled . | . . . Allies | -11 -10 -10 -------- Run | Yrd Mat Min Total Allies 3 | . . 3 Largest Group 3 | . . 3 Highest-Rated Group 40 | . . 40 Highest-Rated Ally 16 | . . 16 Total Orders . | . . . Ally Attacks 9 | . . 9 Total Damage 94 | . . 94 Kills 4 | . . 4 Allies Corrupted . | . . . Allies Melted . | . . . Intel | -11 -10 -10 ------- Run | Yrd Mat Min Active Infowar (turns) 2407 | 80 1684 643 Terrain 2396 | 69 1684 643 Seismic 2407 | 80 1684 643 Robot Analysis Total 2 | . 2 . Derelict Logs Recovered . | . . . Drone Launches . | . . . Drone Recoveries . | . . . Exploration | -11 -10 -10 ------------- Run | Yrd Mat Min Turns Passed 2487 | 160 1684 643 Spaces Moved 1263 | 78 851 334 Core 8 | 8 . . Treads 1255 | 70 851 334 Legs . | . . . Wheels . | . . . Hover . | . . . Flight . | . . . Fastest Speed 50 | 50 160 160 Average Speed 159 | 149 160 160 Slowest Speed 160 | 160 160 160 Overloaded Moves . | . . . Propulsion Burnouts . | . . . Robots Hopped . | . . . Potential Cave-ins . | . . . Cave-ins Triggered . | . . . Exploration Rate (%) 57 | 5 97 70 Regions Visited 2 Branch Regions 1 Pre-discovered Areas 2 | . 2 . Known Exits Taken 1 | . 1 . Unknown Exits Taken 1 | 1 . . Scrap Searched 1 | . . 1 Spaces Dug . | . . . Terrain Destroyed 6 | . . 6 Melee . | . . . Projectile . | . . . AOE 6 | . . 6 Terrain Rammed . | . . . Walls Destroyed . | . . . Machines Disabled . | . . . Actions | -11 -10 -10 --------- Run | Yrd Mat Min Total 1499 | 95 1020 384 Wait 74 | . 66 8 Move 1261 | 77 850 334 Hop . | . . . Pick Up 4 | . 3 1 Fast Attach 11 | 8 3 . Attach . | . . . Detach . | . . . Swap 4 | . 2 2 Drop 2 | . 1 1 Fire 107 | 10 68 29 Melee . | . . . Ram . | . . . Kick . | . . . Crush . | . . . Escape Stasis . | . . . Rewire . | . . . Trap . | . . . Miscellaneous 36 | . 27 9 Route ------- -11/Scrapyard -10/Materials (discovered 6 exits: *Mat x3 / *Min x2 / [Sub]) -10/Mines (discovered 2 exits: *Mat / [*Sub]) History --------- Turn | Location | Event 1 | -11/Scrapyard | Upgraded with Propulsion slot (x1) 1 | -11/Scrapyard | Upgraded with Utility slot (x1) 1 | -11/Scrapyard | Upgraded with Weapon slot (x2) 8 | -11/Scrapyard | Discovered new exit (range 16) 161 | -11/Scrapyard | Entered Materials 314 | -10/Materials | Build established: Gunner 408 | -10/Materials | Discovered new exit (range 12) 520 | -10/Materials | Discovered new exit (range 16) 707 | -10/Materials | Discovered new exit (range 11) 1004 | -10/Materials | Discovered new exit (range 11) 1052 | -10/Materials | Identified exit to Materials 1080 | -10/Materials | Reached level 2 1088 | -10/Materials | Identified exit to Mines 1115 | -10/Materials | Learned 4 Subcaves zone layouts 1139 | -10/Materials | Learned Storage stockpile data 1161 | -10/Materials | Learned 8 Materials zone layouts 1845 | -10/Materials | Entered Mines 1847 | -10/Mines | Reached level 3 1852 | -10/Mines | Assisted by bots powering up and referring to "LRC-V3" 1934 | -10/Mines | Found a hidden stash of uninstalled traps 1978 | -10/Mines | Discovered exit to Materials (range 12) 2144 | -10/Mines | Discovered new exit (range 5) 2385 | -10/Mines | Reached level 4 2426 | -10/Mines | Assembled infested the area 2431 | -10/Mines | Assisted by a Guerilla fighting off Assembled 2463 | -10/Mines | Core integrity fell below 50% 2476 | -10/Mines | Core integrity fell below 20% 2485 | -10/Mines | Lost 4 allies 2488 | -10/Mines | Destroyed by as-99384 with Assembled Maul Last Messages --------------- 02464_ The unstable cave ceiling collapses. 02465_ D-53 Grenadier system corrupted by crushing effect. 02465_ D-53 Grenadier knocked back. 02466_ D-53 Grenadier system terminally corrupted. 02467_ Overheating: Energy bleed (-26). 02470_ Dropped Protomatter-44. 02470_ as-01654 destroyed. 02472_ Acquired Protomatter-44. 02473_ as-03003 destroyed. 02473_ as-71210 destroyed. 02475_ The unstable cave ceiling collapses. 02475_ Destroyed Asb. Hover Unit. 02475_ T-07 Excavator destroyed. 02476_ The unstable cave ceiling collapses. 02477_ as-62883 destroyed. 02478_ Acquired 2 matter. 02479_ The unstable cave ceiling collapses. 02485_ Wheel crushed. 02487_ The unstable cave ceiling collapses. 02487_ K-01 Serf collects debris. Map ----- +----------------------------------------------------+ | | | | | | | | | | | | | | | | | | | | | | | | | | | ????#????????#???????????????????????? | | ??????????????????#??????#???????????? | | ?#???????#?????#??????#??????????????? | | ?????????????####???# ###????????????? | | ???#????????## ##### #?????????????? | | ????????????# ## #?????????????? | | ????????????# #?#???????????? | | #?????#?????# #?????????????? | | ?????????#### #?????????????? | | #???#???## # ##?????????????? | | ?????#?## ######??????????????? | | ??????## ###???????????????? | | ??????# @ %# #????????????????? | | ?????## %a # ##???????????????? | | ?#?### % ????????? | | ??## # # #### ?????????? | | ??# # #????? ?????????? | | ??# ## # #???????????????? | | #?# ### #??#????????????? | | ??## ##?# #???????????????? | | #??# ##### ] ##??????????????? | | ???# %*% #???????????????? | | #??# k %% ! #???????????????? | | ???####%### %%= #???????????????? | | ??????#*###### ! ???????????????? | | ??????# =*#??## ??????????????? | | ??????####%##???# ?????????????? | | ?????????#%#??#??# ????????????????? | | ??####???#[#???#?????????????????????? | | ??# #???# #???##????#???????????????? | | ??# ???# #?????????????????????????? | | ??# #??# #?????????????????????????? | | ??# ### #?????????????????????????? | | ??## ## ###????#??????????????????? | | ???## ##??????????????????????? | | ????# ####???????????????????? | | ???## ### #???????????????? | +----------------------------------------------------+ Best States ------------- Heat Dissipation 25 Energy Generation 14 Energy Capacity 250 Matter Stores 300 Matter Capacity 300 Sight Range 16 Terrain Scan Range 16 Terrain Scan Density 10 Evasion (%) 40 Recoil Reduction 2 Item Schematics ----------------- None Robot Schematics ------------------ None Fabricated ------------ Nothing Repaired ---------- Nothing Studied --------- None Alien Tech Used ----------------- None Achievements -------------- None Challenges ------------ None RPGLIKE | -11 -10 -10 --------- Run | Yrd Mat Min Levels Raised 3 | . 1 2 XP Earned 7737 | 3000 2925 1812 XP Spent 3050 | 2300 750 . Upgrades 6 | 4 2 . Propulsion Slot 1 | 1 . . Utility Slot 1 | 1 . . Weapon Slot 2 | 2 . . Inventory Capacity 2 | . 2 . Protomatter Created 273 | . 239 34 Integrity Restored 665 | . 533 132 Core 516 | . 425 91 Parts 149 | . 108 41 Protomatter Decayed 15 | . 15 . Game ------ Seed AlertArcsightInsulator Manual? 0 Play Time 00:13:24 Cumulative 435.5 hours Start 2026.09.10 @ 09:25:15 End 2026.09.10 @ 09:35:56 Sessions 1 Manual Loads 0 Difficulty Rogue Special Mode Winter2019/RPGLIKE Game No. 338 Rogue 338 Adventurer 0 Explorer 0 Win Type - Total 32 Types 19/0/8/2/0/0/0/1/1/1 Lore% 89 Gallery% 81 Achievement% 72 Wizard Run 0 Options --------- Layout 1 ASCII 0 Keyboard 0 Movement Numpad Keybinds 0 Fullscreen 1 Font 32/SmallcapsGlow Map View 77x35 Zoom Use 0% Tactical HUD 1 Map Filters NONE Filters NONE Steam 1 RUN: 70a89f33-9f22-4739-9553-155622b3852e